bitfinex-derivatives/quotes_ETHF0:USTF0_20251107
["timestamp","ask_amount","ask_price","bid_price","bid_amount"]
[1762540621579,0.1493,3424.4,3424.3,0.47338]
[1762540621879,0.47339,3424.3,3424.0,0.47341]
[1762540622078,6.2493,3424.4,3423.3,1.01148277]
[1762540622279,0.62277,3423.7,3423.2,1.01148277]
[1762540622472,0.62277,3423.7,3423.0,0.00238537]
[1762540622668,0.1493,3423.7,3423.6,0.47348]
[1762540622873,0.1493,3423.7,3423.0,1.01386814]
[1762540623072,0.1493,3423.7,3423.6,0.47348]
[1762540623281,0.1493,3423.7,3423.0,0.00238537]
[1762540623580,0.62277,3423.7,3423.0,0.47594537]
[1762540623876,0.47349,3423.5,3423.3,0.47352]
[1762540624280,0.47349,3423.5,3423.0,0.00238537]
[1762540624281,0.47351,3423.4,3423.2,0.47353]
[1762540624582,6.1,3423.6,3423.0,0.00238537]
[1762540624774,6.57349,3423.6,3423.4,0.47349]
[1762540624975,0.47349,3423.5,3423.3,0.47352]
[1762540625174,0.2274,3423.5,3423.0,0.00238537]
[1762540625379,0.2274,3423.5,3423.4,0.47351]
[1762540625679,0.2274,3423.1,3423.0,0.00238537]
[1762540625882,0.2274,3423.1,3422.8,0.00438416]
[1762540625883,0.2274,3422.9,3422.8,0.47797416]
[1762540626083,0.1493,3423.0,3422.9,0.47358]
[1762540626775,0.47348,3423.6,3422.9,0.00270028]
[1762540626975,0.1493,3423.0,3422.9,0.47628028]
[1762540627374,0.85026,3423.0,3422.9,0.00270028]
[1762540627576,0.3767,3423.0,3422.9,0.47628028]
[1762540627978,0.3767,3423.0,3422.8,0.00438416]
[1762540628184,0.1493,3422.3,3422.0,1.01148277]
[1762540628384,0.1493,3422.3,3422.2,0.47367]
[1762540628581,0.1493,3423.7,3423.6,0.47348]
[1762540629081,0.15153622,3423.7,3423.6,0.47559759]
[1762540629300,0.1493,3425.1,3423.7,5.8416]
[1762540629477,0.1493,3425.1,3424.8,0.4733]
[1762540629672,0.1493,3425.1,3424.3,0.47338]
[1762540629673,0.1493,3424.4,3424.3,0.47338]
[1762540630177,0.15277826,3424.4,3424.3,0.47338]
[1762540630381,0.15277826,3424.4,3424.1,0.75964218]
[1762540630574,0.15277826,3424.4,3424.2,0.47339]
[1762540633189,0.00347826,3424.4,3424.2,1.23303218]
[1762540633385,0.00347826,3424.4,3424.3,0.75964218]
[1762540633682,0.1493,3425.1,3424.2,1.01285624]
[1762540633889,0.1493,3425.1,3425.0,0.47328]
[1762540634685,0.15149167,3425.1,3425.0,0.47328]
[1762540636987,0.15149167,3425.1,3424.6,0.75932254]
[1762540637282,0.15149167,3425.1,3424.8,0.47331]
[1762540637782,0.3767,3424.4,3424.2,0.75932254]
[1762540638088,0.2274,3424.3,3423.9,0.75932254]
[1762540638292,0.2274,3424.3,3423.8,0.75932254]
[1762540638480,0.2274,3424.2,3423.8,0.75932254]
[1762540638681,0.1493,3424.4,3424.3,0.47338]
[1762540638876,0.1493,3424.4,3424.1,0.4734]
[1762540639081,0.1493,3424.4,3424.2,0.47339]
[1762540639982,0.15149167,3425.1,3425.0,0.47328]
[1762540640382,0.38359726,3425.3,3425.2,0.47326]
[1762540640578,0.1493,3425.8,3425.7,0.47319]
[1762540640983,0.47301,3427.0,3426.3,0.4731]
[1762540641187,0.62229,3427.2,3426.3,0.4731]
[1762540641487,0.15299572,3426.5,3426.3,0.47582994]
[1762540642090,0.2274,3426.4,3426.3,0.00272994]
[1762540644180,0.2274,3426.2,3426.1,0.00438416]
[1762540644581,0.1493,3425.8,3425.5,0.4732]
[1762540644787,0.1493,3425.8,3425.6,0.4732]
[1762540645188,0.1493,3425.8,3425.6,0.47686725]
[1762540645491,0.2274,3425.7,3425.6,0.00366725]
[1762540645789,0.2274,3425.0,3424.9,0.47329]
[1762540646089,0.1493,3425.1,3424.9,0.47329]
[1762540646694,6.1,3425.7,3425.5,0.47321]
[1762540647185,0.1493,3425.8,3425.7,0.47319]
[1762540648491,0.00438415,3426.0,3425.9,0.47316]
[1762540648985,0.8971,3427.1,3426.4,0.47309]
[1762540649192,0.4241,3427.1,3426.4,0.47309]
[1762540649985,0.00369572,3426.5,3426.4,0.37309]
[1762540650884,0.14789572,3426.5,3426.4,0.27309]
[1762540651090,0.00369572,3426.5,3426.4,0.27309]
[1762540652293,0.14789572,3426.5,3426.4,0.27309]
[1762540653288,0.14789572,3426.5,3425.6,0.75792099]
[1762540653489,0.14789572,3426.5,3426.4,0.47309]
[1762540654885,0.00369572,3426.5,3426.4,0.47309]
[1762540655386,0.14789572,3426.5,3426.4,0.47309]
[1762540655784,0.39649572,3426.5,3426.4,0.47309]
[1762540655990,0.39649572,3426.5,3425.5,0.75792099]
[1762540656188,0.86957572,3426.5,3426.2,0.47311]
[1762540656384,0.39649572,3426.5,3426.3,0.4731]
[1762540656588,0.47309,3426.4,3425.6,0.75792099]
[1762540656782,0.14789572,3426.5,3425.7,0.47319]
[1762540656783,0.1442,3425.8,3425.7,0.47319]
[1762540656987,0.1442,3425.8,3424.9,0.002617]
[1762540657186,0.1442,3425.8,3424.9,0.76053799]
[1762540657386,0.1442,3425.8,3425.7,0.47319]
[1762540657587,0.1442,3425.8,3425.6,0.4732]
[1762540657784,0.2486,3425.7,3424.9,0.76053799]
[1762540658095,0.2486,3425.5,3425.4,0.47323]
[1762540658296,6.1,3425.7,3425.6,0.4732]
[1762540659198,0.1442,3425.8,3425.7,0.47319]
[1762540660395,0.14789572,3426.5,3425.5,0.75792099]
[1762540660584,0.14789572,3426.5,3425.6,0.75792099]
[1762540660791,0.14789572,3426.5,3426.4,0.47309]
[1762540663399,0.14789572,3426.5,3426.1,0.75792099]
[1762540663698,0.39649572,3426.5,3426.1,0.75792099]
[1762540663895,0.2285,3426.2,3426.1,0.47313]
[1762540664093,0.14789572,3426.5,3425.9,0.47316]
[1762540664299,0.14789572,3426.5,3425.8,0.75792099]
[1762540664300,0.3658,3425.8,3425.7,0.47319]
[1762540664499,0.1373,3425.8,3425.7,0.47319]
[1762540664693,0.14789572,3426.5,3426.4,0.47309]
[1762540667298,0.2285,3426.2,3425.9,0.75792099]
[1762540667489,0.2285,3426.2,3425.8,1.01285624]
[1762540667490,0.2285,3426.2,3425.8,0.75792099]
[1762540667693,0.2285,3426.2,3426.1,0.47313]
[1762540667913,0.2285,3426.1,3426.0,0.47315]
[1762540668199,0.1373,3425.8,3425.7,0.47319]
[1762540668399,0.1373,3425.8,3425.7,1.23027122]
[1762540669303,0.1373,3425.8,3425.7,1.48604624]
[1762540669505,0.1373,3425.8,3425.7,0.47319]
[1762540670002,0.1373,3425.8,3425.7,1.48604624]
[1762540670405,0.1373,3425.8,3425.7,0.47319]
[1762540671994,0.1373,3425.8,3425.7,1.48388724]
[1762540672193,0.1373,3425.8,3425.7,1.23135582]
[1762540672606,0.1373,3425.8,3425.7,1.48388724]
[1762540672800,0.47309,3426.4,3426.2,0.47312]
[1762540673001,0.14789572,3426.5,3426.3,0.47311]
[1762540673310,0.14789572,3426.5,3426.0,0.7579125]
[1762540673509,0.62098572,3426.5,3426.2,0.47311]
[1762540673806,0.14789572,3426.5,3426.0,0.7579125]
[1762540674009,0.62097572,3426.5,3426.2,0.47311]
[1762540674302,0.14789572,3426.5,3426.0,0.7579125]
[1762540674505,0.62097572,3426.5,3426.2,0.47311]
[1762540674701,6.1,3426.4,3426.1,0.47313]
[1762540675009,6.57309,3426.4,3426.2,0.47312]
[1762540675200,6.1,3426.4,3426.0,0.7579125]
[1762540675506,6.1,3426.4,3426.2,0.47311]
[1762540675804,0.2285,3426.1,3426.0,0.7579125]
[1762540676504,6.57309,3426.4,3426.2,0.47311]
[1762540677010,6.347,3426.4,3426.3,0.47311]
[1762540677302,0.39489572,3426.5,3426.4,0.47309]
[1762540677506,0.72012,3426.2,3426.1,0.7579125]
[1762540677707,0.72013,3426.1,3425.8,0.7579125]
[1762540677907,0.247,3425.9,3425.8,1.2310825]
[1762540678109,0.1493,3426.0,3425.9,0.47316]
[1762540678308,0.1493,3426.0,3425.9,1.2310725]
[1762540679103,0.1493,3426.0,3425.9,1.48371001]
[1762540680809,6.1,3426.4,3426.3,0.47311]
[1762540681008,0.14789572,3426.5,3426.3,0.75794497]
[1762540681312,0.247,3426.3,3426.2,1.23106497]
[1762540681905,0.14789572,3426.5,3426.3,0.47311]
[1762540682114,0.14789572,3426.5,3426.4,1.23137308]
[1762540683509,0.14789572,3426.5,3426.4,0.75828308]
[1762540683715,0.247,3426.4,3426.1,0.75828308]
[1762540683911,0.247,3426.4,3426.3,0.47311]
[1762540684116,0.14789572,3426.5,3426.4,0.47309]
[1762540684319,0.14789572,3426.5,3426.4,1.23137308]
[1762540685011,0.39489572,3426.5,3426.3,1.0105933]
[1762540685207,0.39489572,3426.5,3426.3,0.47311]
[1762540685208,0.247,3426.4,3426.3,0.47311]
[1762540685408,0.247,3426.3,3426.2,1.0105933]
[1762540685608,0.247,3426.2,3426.0,1.4837233]
[1762540685814,0.1493,3426.0,3425.9,1.4837433]
[1762540686118,0.3963,3426.0,3425.9,1.4837433]
[1762540686416,0.86945,3426.0,3425.9,1.0105933]
[1762540686616,0.247,3425.0,3424.9,0.002617]
[1762540686918,0.1493,3424.8,3424.6,1.52366853]
[1762540687105,0.1493,3424.8,3424.7,1.99261437]
[1762540687312,0.1493,3424.8,3424.7,1.99248297]
[1762540687621,0.1493,3425.4,3425.3,0.47324]
[1762540687910,0.1493,3426.0,3425.3,0.47324]
[1762540687911,0.1493,3426.0,3425.9,0.47316]
[1762540688315,0.6183,3426.6,3426.4,0.47309]
[1762540688708,0.39489572,3426.5,3426.4,0.47309]
[1762540689111,0.1493,3426.0,3425.9,1.51796522]
[1762540689313,0.1493,3426.0,3425.9,0.47316]
[1762540689815,0.1493,3426.0,3425.9,0.43316]
[1762540690916,0.14789572,3426.5,3426.3,0.4731]
[1762540691118,0.247,3426.4,3426.1,0.47313]
[1762540691413,0.39489572,3426.5,3426.2,0.47311]
[1762540691618,0.1493,3426.0,3425.9,0.47316]
[1762540693513,0.1493,3426.0,3425.9,1.99112522]
[1762540693810,0.14789572,3426.5,3426.4,0.47309]
[1762540694005,0.47309,3426.4,3426.0,1.99109522]
[1762540694212,0.247,3425.9,3425.8,1.51796522]
[1762540694407,0.3963,3425.4,3425.3,0.00266466]
[1762540694812,6.4963,3425.4,3425.3,0.47590466]
[1762540696519,6.96953,3425.4,3425.3,0.00166466]
[1762540696717,0.1493,3424.8,3424.4,2.02416553]
[1762540697020,0.1493,3424.8,3424.7,0.47333]
[1762540697721,0.1493,3424.8,3424.7,0.47709366]
[1762540699023,0.3963,3424.8,3424.7,0.47709366]
[1762540699820,6.2493,3425.4,3424.7,0.47709366]
[1762540699821,6.2493,3425.4,3425.3,0.47324]
[1762540700016,0.1493,3424.8,3424.7,0.47709366]
[1762540701516,0.1493,3424.8,3424.7,0.47609366]
[1762540702218,0.3963,3424.8,3424.7,0.47609366]
[1762540702415,0.3963,3424.8,3424.7,0.00176366]
[1762540702821,0.3963,3424.8,3424.7,0.47509366]
[1762540703020,0.1493,3424.8,3424.7,0.47509366]
[1762540703220,0.1493,3424.8,3424.7,0.47409366]
[1762540704222,0.1493,3424.8,3424.7,0.47309366]
[1762540704426,0.1493,3426.0,3425.9,0.47316]
[1762540704628,0.14789572,3426.5,3426.4,0.47309]
[1762540705015,0.14789572,3426.5,3426.4,0.47209]
[1762540705327,0.14789572,3426.5,3426.4,0.47443078]
[1762540705727,0.14789572,3426.5,3426.4,0.47343078]
[1762540706121,0.1493,3427.2,3427.0,0.47301]
[1762540706822,0.1493,3427.2,3427.0,0.47201]
[1762540707225,0.15250177,3427.2,3427.0,0.47201]
[1762540707419,0.15250177,3427.2,3427.0,0.47101]
[1762540707824,0.15030177,3427.2,3427.0,0.47101]
[1762540708021,0.00320177,3427.2,3427.0,0.47101]
[1762540708220,0.6187,3427.8,3427.7,0.47291]
[1762540708421,0.6187,3427.8,3427.5,0.47293]
[1762540708630,0.6187,3427.8,3427.6,0.47292]
[1762540709232,0.00287893,3427.8,3427.6,0.47292]
[1762540709424,0.00287893,3427.8,3427.6,0.47192]
[1762540709725,0.00287893,3427.8,3426.8,0.00437771]
[1762540709935,0.1471,3427.2,3426.8,0.00437771]
[1762540710228,0.1471,3427.2,3427.1,0.47299]
[1762540711424,0.7002,3427.1,3426.8,0.00237771]
[1762540711630,0.2272,3426.9,3426.8,0.00237771]
[1762540711932,0.1471,3427.2,3426.9,0.47302]
[1762540712130,0.1471,3427.2,3426.8,0.00237771]
[1762540712429,0.1471,3427.2,3427.1,0.47199]
[1762540712631,0.1471,3427.2,3426.8,0.00237771]
[1762540712830,0.1471,3427.2,3427.0,0.473]
[1762540713023,0.2272,3427.1,3426.8,0.00237771]
[1762540713219,0.2272,3426.9,3426.8,0.00237771]
[1762540713630,0.1471,3427.2,3427.0,0.47301]
[1762540714824,6.1,3427.1,3427.0,0.47301]
[1762540715022,6.1,3427.1,3426.8,0.00237771]
[1762540715229,6.1,3427.1,3427.0,0.47301]
[1762540715829,0.2272,3427.0,3426.9,0.47302]
[1762540716036,6.1,3427.1,3427.0,0.47301]
[1762540716435,0.1471,3427.2,3427.1,0.47299]
[1762540716638,0.2272,3427.1,3426.8,0.00237771]
[1762540716839,6.3272,3427.1,3427.0,0.47301]
[1762540717040,0.2272,3426.9,3426.8,0.00237771]
[1762540717237,0.2272,3426.9,3426.8,0.47541771]
[1762540717534,6.1,3427.1,3427.0,0.47301]
[1762540717741,0.1471,3427.2,3427.1,0.47299]
[1762540721542,0.57507846,3427.5,3427.4,0.47295]
[1762540721749,0.00097846,3427.5,3427.4,0.47295]
[1762540724352,0.23417846,3427.5,3427.4,0.47295]
[1762540724546,0.00097846,3427.5,3427.4,0.47295]
[1762540725353,0.23417846,3427.5,3427.4,0.47295]
[1762540725655,0.1381,3427.2,3426.8,0.00237771]
[1762540725952,0.1381,3427.2,3427.1,0.47299]
[1762540726152,0.00097846,3427.5,3427.4,0.47295]
[1762540727051,0.00287893,3427.8,3427.7,0.47291]
[1762540728056,0.1381,3427.2,3427.1,1.48227212]
[1762540728258,0.1381,3427.2,3427.1,0.47299]
[1762540730256,0.3713,3427.2,3426.8,0.00237771]
[1762540730452,0.1381,3427.2,3427.1,0.47299]
[1762540730653,0.1381,3427.2,3426.8,0.00237771]
[1762540730959,0.1381,3427.2,3427.1,0.47299]
[1762540731454,6.2381,3427.2,3426.8,0.00237771]
[1762540731850,6.71109,3427.2,3426.9,0.47302]
[1762540732051,0.2332,3427.0,3426.9,0.47302]
[1762540732853,0.2332,3426.9,3426.8,0.00237771]
[1762540733254,0.2332,3426.9,3426.8,0.47541771]
[1762540733579,6.2381,3427.2,3427.1,0.47299]
[1762540734059,6.4713,3427.2,3427.1,0.47299]
[1762540734451,0.3713,3427.2,3427.1,0.47299]
[1762540735952,0.1381,3427.2,3427.1,0.47299]
[1762540736354,0.3683,3427.2,3427.1,0.47299]
[1762540736553,0.3683,3427.2,3426.9,1.00928212]
[1762540736755,0.3683,3427.2,3426.8,1.01165983]
[1762540736958,0.3683,3427.2,3427.1,0.47299]
[1762540737459,0.1381,3427.2,3427.1,0.47299]
[1762540738462,0.1381,3427.2,3427.1,1.48227212]
[1762540739262,0.1381,3427.2,3427.1,0.47299]
[1762540739560,0.1381,3427.2,3427.1,1.48734239]
[1762540739764,0.1381,3427.2,3427.1,0.47299]
[1762540740257,0.4423,3427.6,3427.5,0.47294]
[1762540740660,0.6725,3427.6,3427.3,1.01410148]
[1762540740864,0.2302,3427.3,3427.2,1.48708148]
[1762540741163,0.1484,3427.5,3427.4,0.47295]
[1762540742359,0.4423,3427.6,3427.5,0.47294]
[1762540743462,0.00100001,3428.1,3428.0,0.47287]
[1762540743761,0.00100001,3428.1,3428.0,1.99355136]
[1762540744154,0.00100001,3428.1,3428.0,0.47287]
[1762540744563,6.1,3428.9,3428.3,0.47283]
[1762540744755,6.1,3428.9,3428.3,1.48562073]
[1762540744951,6.1,3428.9,3428.3,0.47283]
[1762540745156,6.1,3428.9,3428.3,1.48444496]
[1762540745557,0.1530126,3428.4,3428.3,1.48444496]
[1762540746065,0.2302,3428.3,3428.2,1.01161496]
[1762540746259,0.3786,3428.0,3427.9,0.47288]
[1762540746558,0.1484,3428.0,3427.9,0.47288]
[1762540746958,0.1484,3428.0,3427.9,1.23077493]
[1762540747759,0.1484,3428.0,3427.9,1.23088282]
[1762540748766,0.1484,3428.0,3427.9,0.47288]
[1762540748964,0.1484,3428.0,3427.9,1.23042647]
[1762540749165,0.1484,3428.0,3427.9,0.47288]
[1762540749166,0.3786,3428.0,3427.9,0.47288]
[1762540749366,0.70314,3427.5,3427.4,0.26181496]
[1762540749565,0.2302,3426.9,3426.8,0.00237771]
[1762540749866,6.2443,3427.2,3427.0,0.473]
[1762540750667,0.2302,3426.9,3426.8,0.00237771]
[1762540752667,6.1,3427.2,3427.1,0.473]
[1762540753066,6.1,3427.2,3427.1,0.7184]
[1762540753265,6.1,3427.2,3427.0,0.47301]
[1762540753666,6.1,3427.2,3426.8,0.00237771]
[1762540754173,0.2302,3426.9,3426.8,0.00237771]
[1762540754363,0.2302,3426.9,3426.8,0.47541771]
[1762540754570,0.2302,3426.9,3426.8,0.00237771]
[1762540754770,0.2302,3426.9,3426.8,0.47541771]
[1762540755074,0.2302,3426.9,3426.8,0.00237771]
[1762540755263,0.70322,3426.9,3426.8,0.00237771]
[1762540755462,0.70322,3426.9,3426.4,0.00234078]
[1762540755463,0.70328,3426.5,3426.4,0.00234078]
[1762540755661,0.2302,3426.5,3426.4,0.47543078]
[1762540755859,6.7196577,3427.2,3426.4,0.00234078]
[1762540756072,6.7196677,3427.2,3426.4,0.00234078]
[1762540756372,0.2302,3427.1,3426.4,0.00234078]
[1762540756670,6.1023777,3427.2,3427.1,0.473]
[1762540758266,0.2325777,3427.2,3427.1,0.473]
[1762540758469,0.0023777,3427.2,3427.1,0.473]
[1762540759669,0.0023777,3427.2,3427.1,0.7184]
[1762540760072,0.0023777,3427.2,3427.1,0.71839]
[1762540764481,0.0023777,3427.2,3427.1,0.47299]
[1762540764875,0.0023777,3427.2,3427.1,0.71839]
[1762540765378,6.1,3428.0,3427.9,0.71828]
[1762540765980,0.0037126,3428.4,3428.3,0.47283]
[1762540766375,6.3339126,3428.4,3428.3,0.47283]
[1762540766874,6.1037126,3428.4,3428.3,0.47283]
[1762540767078,0.0037126,3428.4,3428.3,0.70393]
[1762540767377,0.2001,3429.1,3429.0,0.70383]
[1762540767577,6.1,3429.1,3429.0,0.70383]
[1762540768282,0.2438,3428.8,3428.7,0.00437771]
[1762540768483,0.71656,3428.8,3428.7,0.00437771]
[1762540768684,0.71656,3428.8,3428.7,0.00810898]
[1762540769182,0.1353,3427.8,3427.2,1.5191861]
[1762540769378,0.1353,3427.8,3426.7,1.5191861]
[1762540769580,0.2438,3427.2,3426.3,1.5191861]
[1762540769782,6.3438,3427.2,3427.1,0.473]
[1762540770178,0.2438,3427.0,3426.8,0.00437771]
[1762540770375,0.71682,3426.9,3426.8,0.00799882]
[1762540770882,0.2438,3426.9,3426.8,0.00799882]
[1762540771079,0.71682,3426.9,3426.8,0.00799882]
[1762540771576,0.2438,3426.9,3426.8,0.00799882]
[1762540772483,6.70829,3427.2,3426.9,0.47302]
[1762540772683,6.1,3427.2,3426.8,0.00799882]
[1762540772885,6.1,3427.2,3427.0,0.473]
[1762540774383,0.47296,3427.4,3427.1,0.47299]
[1762540774586,0.47731771,3427.5,3426.8,0.00799882]
[1762540774787,6.1,3427.4,3426.8,0.00799882]
[1762540774991,6.57295,3427.4,3427.1,0.47299]
[1762540775284,0.00437771,3427.5,3427.4,0.47295]
[1762540775981,0.00437771,3427.5,3427.4,0.70405]
[1762540780489,0.2319,3427.3,3427.1,1.01082162]
[1762540780689,0.2319,3427.3,3426.9,0.47302]
[1762540780885,0.2319,3427.1,3427.0,0.47301]
[1762540781696,0.00437771,3427.5,3427.4,0.47295]
[1762540782391,6.10437771,3427.5,3427.4,0.47295]
[1762540783592,6.33627771,3427.5,3427.4,0.47295]
[1762540784495,6.33627771,3427.5,3426.8,1.01882044]
[1762540784896,6.33627771,3427.5,3427.4,0.47295]
[1762540785394,0.00437771,3427.5,3427.4,0.71215]
[1762540785593,0.23627771,3427.5,3427.4,0.47295]
[1762540786399,0.00437771,3427.5,3427.4,0.71215]
[1762540787598,0.00437771,3427.5,3427.4,0.47295]
[1762540788590,0.00437771,3427.5,3427.4,0.71215]
[1762540790204,0.05636711,3427.9,3427.8,0.7121]
[1762540790501,2.699,3429.8,3428.0,0.141]
[1762540790502,0.2319,3428.7,3428.0,0.141]
[1762540790703,6.1,3428.6,3428.0,0.141]
[1762540790900,6.1,3428.6,3428.5,0.4728]
[1762540791296,6.1,3428.6,3428.4,0.47281]
[1762540791604,0.2319,3428.5,3428.4,0.47281]
[1762540792103,0.2319,3428.3,3428.2,0.47284]
[1762540793004,0.1469,3428.5,3428.4,0.47282]
[1762540793197,0.3788,3428.5,3428.4,0.47282]
[1762540793702,0.2319,3428.4,3427.8,1.01082162]
[1762540793905,0.2319,3428.3,3428.2,0.47283]
[1762540794205,0.47285,3428.2,3427.6,1.01082162]
[1762540794505,0.2319,3428.1,3428.0,0.47286]
[1762540795400,0.3788,3428.5,3428.4,0.47282]
[1762540795798,0.2319,3428.4,3428.3,0.47283]
[1762540795997,0.70472,3428.4,3428.3,0.47283]
[1762540796806,0.2319,3428.4,3428.3,0.47283]
[1762540797902,0.70472,3428.4,3428.3,0.47283]
[1762540798111,0.2319,3427.9,3427.8,0.4729]
[1762540800406,0.2434,3428.2,3428.1,0.47285]
[1762540800909,0.2434,3428.5,3428.4,0.47282]
[1762540801410,6.1,3428.6,3428.5,0.4728]
[1762540802307,6.1,3428.6,3428.5,0.8438]
[1762540802506,0.0485,3428.8,3428.7,0.70257]
[1762540802708,0.0887,3429.5,3429.0,0.70253]
[1762540803008,6.1,3429.9,3429.0,0.84373]
[1762540803408,0.08457278,3430.3,3430.2,0.2298]
[1762540804416,0.08771917,3430.3,3430.2,0.23272777]
[1762540804611,0.00314639,3430.3,3430.2,0.23272777]
[1762540804811,0.47231,3432.1,3431.4,0.1004]
[1762540805014,0.0414,3432.1,3431.4,0.1004]
[1762540805215,0.0414,3432.1,3431.6,0.47237]
[1762540805826,0.04411453,3432.1,3431.6,0.47237]
[1762540806026,0.04411453,3432.1,3431.4,0.10477069]
[1762540806221,0.04411453,3432.1,3431.6,0.47237]
[1762540806423,0.04411453,3432.1,3431.7,0.47235]
[1762540806623,0.04411453,3432.1,3431.4,0.10477069]
[1762540806824,0.04411453,3432.1,3431.6,0.47237]
[1762540807020,0.47211,3433.6,3432.0,0.1412]
[1762540807226,0.1355,3433.8,3432.0,0.1412]
[1762540807521,6.1,3434.3,3432.6,0.1412]
[1762540807723,0.47206,3434.0,3433.2,0.1412]
[1762540808023,6.1,3434.3,3433.2,0.1412]
[1762540808024,0.47204,3434.1,3433.2,0.61334]
[1762540808325,0.47572109,3434.0,3433.2,0.61661731]
[1762540808525,0.47572109,3434.0,3433.3,0.47213]
[1762540808926,0.47207,3433.9,3433.3,0.47213]
[1762540809424,0.47572109,3434.0,3433.4,0.47212]
[1762540809624,0.47208,3433.8,3433.2,0.61661731]
[1762540809831,0.47208,3433.8,3433.2,0.14446731]
[1762540810133,0.00367109,3434.0,3433.3,0.47214]
[1762540810426,0.00367109,3434.0,3433.2,0.00326731]
[1762540810832,0.47209,3433.7,3433.2,0.00326731]
[1762540811028,0.00367109,3434.0,3433.2,0.00326731]
[1762540811431,0.2434,3433.3,3433.2,0.00326731]
[1762540812031,0.00367109,3434.0,3433.2,0.14446731]
[1762540812535,0.00367109,3434.0,3433.4,0.47212]
[1762540812731,0.47208,3433.8,3433.3,0.47214]
[1762540813029,0.00367109,3434.0,3433.2,0.14446731]
[1762540813227,0.00367109,3434.0,3433.2,0.61660731]
[1762540813429,0.47208,3433.8,3433.3,0.47214]
[1762540813628,0.47209,3433.7,3433.3,0.47214]
[1762540813825,0.00367109,3434.0,3433.9,0.2298]
[1762540814026,0.00367109,3434.0,3433.8,0.61326]
[1762540814227,0.00367109,3434.0,3433.8,0.47206]
[1762540814837,0.00367109,3434.0,3433.9,0.2298]
[1762540815937,0.47184,3435.5,3435.0,0.1412]
[1762540816124,0.1355,3436.8,3434.9,0.00437069]
[1762540816125,0.1355,3436.3,3434.9,0.00437069]
[1762540816324,0.2434,3435.3,3435.1,0.47189]
[1762540816530,0.1355,3436.3,3435.4,0.47184]
[1762540816736,0.1355,3436.3,3434.9,0.14557069]
[1762540816930,0.13763036,3436.3,3435.5,0.47183]
[1762540817131,0.13763036,3436.3,3435.6,0.47182]
[1762540817431,0.13763036,3436.3,3434.9,0.14557069]
[1762540817631,0.47179,3435.9,3435.6,0.47182]
[1762540817830,0.13763036,3436.3,3434.9,0.14557069]
[1762540818030,0.13763036,3436.3,3435.7,0.47181]
[1762540818336,0.13763036,3436.3,3435.7,0.47421232]
[1762540818636,0.2434,3435.8,3435.7,0.00240232]
[1762540818834,0.47191,3435.0,3434.9,0.00437069]
[1762540819028,0.71531,3435.0,3434.9,0.00437069]
[1762540819334,0.47201,3434.3,3433.8,0.1412]
[1762540819632,0.1355,3434.9,3433.8,0.47207]
[1762540819836,0.47203,3434.1,3433.8,0.00226932]
[1762540820038,0.2434,3433.9,3433.8,0.00226932]
[1762540820428,0.47213,3433.4,3432.4,1.207]
[1762540820638,0.13984732,3434.2,3432.8,0.47221]
[1762540820832,0.13984732,3434.2,3432.0,0.00863]
[1762540820833,0.47215,3433.3,3432.0,0.00863]
[1762540821139,0.47216,3433.2,3432.7,0.47221]
[1762540821336,0.47216,3433.2,3432.0,0.00863]
[1762540821548,0.47219,3433.0,3432.5,0.47225]
[1762540821843,0.00277357,3433.2,3432.3,0.00437069]
[1762540821844,0.47226,3432.5,3432.3,0.00437069]
[1762540822039,0.2434,3432.4,3432.3,0.00437069]
[1762540822235,0.47223,3432.7,3432.3,0.00437069]
[1762540822433,0.1355,3432.8,3432.3,0.00437069]
[1762540822631,0.00277357,3433.2,3432.3,0.00437069]
[1762540822842,0.2434,3432.4,3432.3,0.00437069]
[1762540823931,0.1355,3432.1,3430.0,0.1412]
[1762540824336,0.1355,3432.1,3431.2,0.47243]
[1762540824533,0.1355,3432.1,3430.0,0.1412]
[1762540824732,0.47235,3431.8,3431.1,0.47244]
[1762540824929,0.47237,3431.7,3431.1,0.00787466]
[1762540825132,0.47237,3431.7,3431.3,0.47241]
[1762540825333,0.47672069,3431.8,3431.5,0.47238]
[1762540825745,0.47672069,3431.8,3431.4,0.47239]
[1762540826036,0.00437069,3431.8,3431.1,0.00787466]
[1762540826429,0.00437069,3431.8,3431.6,0.47237]
[1762540827643,0.00437069,3431.8,3431.1,0.00787466]
[1762540828238,0.00437069,3431.8,3431.3,0.4724]
[1762540828542,0.00437069,3431.8,3431.1,0.00787466]
[1762540829039,0.47236,3431.7,3431.1,0.00787466]
[1762540829241,0.00437069,3431.8,3431.5,0.47238]
[1762540829541,0.00437069,3431.8,3431.6,0.47237]
[1762540829939,0.00437069,3431.8,3431.1,0.00787466]
[1762540830237,0.47239,3431.5,3431.1,0.48031466]
[1762540830443,0.225,3431.2,3431.1,0.00787466]
[1762540831131,0.33441359,3431.2,3431.1,0.00787466]
[1762540831842,0.47245,3431.1,3430.8,0.47248]
[1762540832035,0.58186359,3431.1,3430.8,0.47248]
[1762540832242,0.10941359,3431.0,3430.8,0.47248]
[1762540832441,0.58186359,3431.1,3430.8,0.47248]
[1762540832641,0.225,3430.9,3430.8,0.0037751]
[1762540833641,0.33441359,3430.9,3430.8,0.0037751]
[1762540834840,0.225,3430.9,3430.8,0.0037751]
[1762540835045,0.225,3430.1,3430.0,0.47259]
[1762540835747,0.225,3430.4,3430.3,0.47254]
[1762540836041,0.1095976,3430.6,3430.5,0.47253]
[1762540836343,0.0027388,3430.6,3430.5,0.47253]
[1762540837951,0.0027388,3430.6,3430.5,0.71813]
[1762540838244,0.0027388,3430.6,3430.5,0.47253]
[1762540838547,0.0027388,3430.6,3430.5,0.71813]
[1762540838746,2.37553554,3433.7,3430.5,0.71813]
[1762540838747,0.47236,3431.7,3430.7,0.1324]
[1762540838946,1.18115745,3432.8,3430.7,0.1324]
[1762540838947,0.10948405,3432.0,3430.7,0.1324]
[1762540839249,0.1442,3431.4,3430.3,0.00317806]